[Event "*** SCC Grand Prix: Titled Tuesday Blitz"]
[Site "Chess.com"]
[Date "2020.09.08"]
[Round "1"]
[White "parnali1611"]
[Black "blitis"]
[Result "1-0"]
[WhiteElo "2158"]
[BlackElo "2501"]
[TimeControl "180+1"]
[EndTime "10:07:07 PDT"]
[Termination "parnali1611 won on time"]

1. d4 {[%clk 0:01:34.7]} 1... g6 {[%clk 0:02:59.4]} 2. e4 {[%clk 0:01:33.6]}
2... Bg7 {[%clk 0:02:58.8]} 3. Be3 {[%clk 0:01:33.8]} 3... c5 {[%clk 0:02:55.7]}
4. f3 {[%clk 0:01:34.7]} 4... Nc6 {[%clk 0:02:52.5]} 5. c3 {[%clk 0:01:32.1]}
5... d5 {[%clk 0:02:40.6]} 6. e5 {[%clk 0:01:26.3]} 6... Nh6 {[%clk 0:02:36]} 7.
Bb5 {[%clk 0:01:26.2]} 7... Nf5 {[%clk 0:02:33.2]} 8. Bf2 {[%clk 0:01:26.5]}
8... h5 {[%clk 0:02:32.7]} 9. Ne2 {[%clk 0:01:25.4]} 9... Qb6 {[%clk 0:02:20.1]}
10. a4 {[%clk 0:01:19.6]} 10... a6 {[%clk 0:02:00.8]} 11. dxc5 {[%clk
0:01:16.9]} 11... Qc7 {[%clk 0:01:50.1]} 12. Bxc6+ {[%clk 0:01:16.5]} 12... bxc6
{[%clk 0:01:45.1]} 13. f4 {[%clk 0:01:17]} 13... a5 {[%clk 0:01:45.1]} 14. Nd2
{[%clk 0:01:16]} 14... Ba6 {[%clk 0:01:43.7]} 15. Nf3 {[%clk 0:01:15.1]} 15...
e6 {[%clk 0:01:34.8]} 16. Qd2 {[%clk 0:01:15.2]} 16... Rb8 {[%clk 0:01:31.8]}
17. O-O {[%clk 0:01:14.4]} 17... Bh6 {[%clk 0:01:19.3]} 18. Rfb1 {[%clk
0:01:10.3]} 18... f6 {[%clk 0:01:18.5]} 19. exf6 {[%clk 0:01:06.7]} 19... O-O
{[%clk 0:01:12.5]} 20. b4 {[%clk 0:00:58]} 20... Rxf6 {[%clk 0:01:09.3]} 21.
Nfd4 {[%clk 0:00:51.6]} 21... e5 {[%clk 0:01:03.9]} 22. Nxf5 {[%clk 0:00:50.8]}
22... Rxf5 {[%clk 0:01:04.8]} 23. b5 {[%clk 0:00:47.7]} 23... Bb7 {[%clk
0:01:00.9]} 24. Be3 {[%clk 0:00:40.2]} 24... exf4 {[%clk 0:00:56.6]} 25. Bd4
{[%clk 0:00:36.2]} 25... Kh7 {[%clk 0:00:52.4]} 26. Qd3 {[%clk 0:00:34]} 26...
Re8 {[%clk 0:00:49.2]} 27. Qf3 {[%clk 0:00:33.2]} 27... Qf7 {[%clk 0:00:45.1]}
28. bxc6 {[%clk 0:00:33.1]} 28... Bxc6 {[%clk 0:00:45]} 29. Rb6 {[%clk
0:00:32.9]} 29... Qe6 {[%clk 0:00:33.8]} 30. Rab1 {[%clk 0:00:29.9]} 30... g5
{[%clk 0:00:05]} 31. Qd3 {[%clk 0:00:27.4]} 31... Kg6 {[%clk 0:00:03.2]} 32.
Rxc6 {[%clk 0:00:26.8]} 32... Qxc6 {[%clk 0:00:02.9]} 33. Rb6 {[%clk 0:00:26.8]}
33... Re6 {[%clk 0:00:03.4]} 34. Rxc6 {[%clk 0:00:26.6]} 34... Rxc6 {[%clk
0:00:04.3]} 35. Bh8 {[%clk 0:00:26.4]} 35... Rxc5 {[%clk 0:00:02.4]} 36. Nd4
{[%clk 0:00:26.5]} 1-0

[Event "*** SCC Grand Prix: Titled Tuesday Blitz"]
[Site "Chess.com"]
[Date "2020.09.08"]
[Round "1"]
[White "Sn00pPawn"]
[Black "Susal_De_Silva"]
[Result "0-1"]
[WhiteElo "2013"]
[BlackElo "2490"]
[TimeControl "180+1"]
[EndTime "10:07:08 PDT"]
[Termination "Susal_De_Silva won on time"]

1. d4 {[%clk 0:02:58]} 1... Nf6 {[%clk 0:02:59.8]} 2. c4 {[%clk 0:02:57.9]} 2...
e6 {[%clk 0:02:59.5]} 3. Nf3 {[%clk 0:02:56.9]} 3... b6 {[%clk 0:02:58.9]} 4. g3
{[%clk 0:02:55.8]} 4... Bb7 {[%clk 0:02:59.8]} 5. Bg2 {[%clk 0:02:55]} 5... g6
{[%clk 0:02:59.9]} 6. O-O {[%clk 0:02:49.5]} 6... Bg7 {[%clk 0:02:59.7]} 7. Nc3
{[%clk 0:02:44.1]} 7... Ne4 {[%clk 0:02:59.7]} 8. Qc2 {[%clk 0:02:36.1]} 8...
Nxc3 {[%clk 0:02:58.9]} 9. bxc3 {[%clk 0:02:30.7]} 9... O-O {[%clk 0:02:56.2]}
10. d5 {[%clk 0:02:19.1]} 10... d6 {[%clk 0:02:51.8]} 11. Nd4 {[%clk 0:02:10.3]}
11... e5 {[%clk 0:02:49.4]} 12. Nb3 {[%clk 0:01:59.5]} 12... a5 {[%clk
0:02:45.7]} 13. e4 {[%clk 0:01:49.8]} 13... f5 {[%clk 0:02:43.2]} 14. exf5
{[%clk 0:01:35.2]} 14... gxf5 {[%clk 0:02:44.1]} 15. f4 {[%clk 0:01:30.2]} 15...
e4 {[%clk 0:02:41.6]} 16. Nd4 {[%clk 0:01:22.9]} 16... Qf6 {[%clk 0:02:37.9]}
17. Be3 {[%clk 0:01:05.1]} 17... Na6 {[%clk 0:02:36.5]} 18. Ne6 {[%clk
0:00:49.9]} 18... Rf7 {[%clk 0:02:34.9]} 19. Bd4 {[%clk 0:00:48.7]} 19... Qg6
{[%clk 0:02:31.5]} 20. Bxg7 {[%clk 0:00:37]} 20... Rxg7 {[%clk 0:02:32.4]} 21.
Nxg7 {[%clk 0:00:31.5]} 21... Qxg7 {[%clk 0:02:33.3]} 22. Qd2 {[%clk 0:00:30.7]}
22... Nc5 {[%clk 0:02:33.1]} 23. Qd4 {[%clk 0:00:30.1]} 23... Qf7 {[%clk
0:02:32.7]} 24. g4 {[%clk 0:00:24.6]} 24... Bc8 {[%clk 0:02:30.7]} 25. Rae1
{[%clk 0:00:19.9]} 25... Qg7 {[%clk 0:02:18.6]} 26. Re3 {[%clk 0:00:18.2]} 26...
Kf7 {[%clk 0:01:15.4]} 27. gxf5 {[%clk 0:00:17.4]} 27... Bxf5 {[%clk 0:01:12.7]}
28. Rg3 {[%clk 0:00:13.6]} 28... Qf6 {[%clk 0:01:08.6]} 29. Re1 {[%clk
0:00:10.9]} 29... Re8 {[%clk 0:01:06.1]} 30. Rg5 {[%clk 0:00:10.5]} 30... Nd3
{[%clk 0:00:58.6]} 31. Re3 {[%clk 0:00:09.6]} 31... h6 {[%clk 0:00:55.4]} 32.
Rgg3 {[%clk 0:00:07.1]} 32... Nxf4 {[%clk 0:00:51.9]} 33. Bxe4 {[%clk 0:00:07]}
33... Qxd4 {[%clk 0:00:43.9]} 34. cxd4 {[%clk 0:00:06.5]} 34... Bxe4 {[%clk
0:00:38.3]} 35. Rg4 {[%clk 0:00:05.7]} 35... Bf5 {[%clk 0:00:31]} 0-1

[Event "*** SCC Grand Prix: Titled Tuesday Blitz"]
[Site "Chess.com"]
[Date "2020.09.08"]
[Round "1"]
[White "politeplayer"]
[Black "arminmusovic"]
[Result "0-1"]
[WhiteElo "2244"]
[BlackElo "2574"]
[TimeControl "180+1"]
[EndTime "10:07:09 PDT"]
[Termination "arminmusovic won by resignation"]

1. e4 {[%clk 0:03:00.1]} 1... c6 {[%clk 0:03:00.1]} 2. d4 {[%clk 0:02:59.5]}
2... d5 {[%clk 0:02:59.5]} 3. Nc3 {[%clk 0:02:57.3]} 3... dxe4 {[%clk
0:02:59.5]} 4. f3 {[%clk 0:02:57.6]} 4... Nf6 {[%clk 0:03:00.4]} 5. fxe4 {[%clk
0:02:56.8]} 5... e5 {[%clk 0:03:00.6]} 6. Nf3 {[%clk 0:02:54.6]} 6... exd4
{[%clk 0:02:58.4]} 7. Qxd4 {[%clk 0:02:53.7]} 7... Qxd4 {[%clk 0:02:55.3]} 8.
Nxd4 {[%clk 0:02:52.9]} 8... Bb4 {[%clk 0:02:54.2]} 9. Bd3 {[%clk 0:02:47.1]}
9... O-O {[%clk 0:02:48.5]} 10. Bg5 {[%clk 0:02:45.1]} 10... Nbd7 {[%clk
0:02:46.1]} 11. O-O-O {[%clk 0:02:41.3]} 11... Re8 {[%clk 0:02:34.8]} 12. Rhf1
{[%clk 0:02:13.4]} 12... Bxc3 {[%clk 0:02:14.6]} 13. bxc3 {[%clk 0:02:12]} 13...
Nxe4 {[%clk 0:02:03.1]} 14. Bxe4 {[%clk 0:02:11.3]} 14... Rxe4 {[%clk
0:02:01.1]} 15. Rde1 {[%clk 0:02:03.2]} 15... Rxe1+ {[%clk 0:01:48]} 16. Rxe1
{[%clk 0:02:02.6]} 16... f6 {[%clk 0:01:36.1]} 17. Bf4 {[%clk 0:01:59.8]} 17...
Nb6 {[%clk 0:01:19.4]} 18. Re8+ {[%clk 0:01:47.3]} 18... Kf7 {[%clk 0:01:19.5]}
19. Rh8 {[%clk 0:01:43.2]} 19... h6 {[%clk 0:01:09.4]} 20. a4 {[%clk 0:01:27.4]}
20... Bd7 {[%clk 0:01:03.8]} 21. Rxa8 {[%clk 0:01:26.7]} 21... Nxa8 {[%clk
0:01:04.7]} 22. a5 {[%clk 0:01:27]} 22... c5 {[%clk 0:01:05.3]} 23. Nb3 {[%clk
0:01:18.7]} 23... b6 {[%clk 0:01:05.4]} 24. Bb8 {[%clk 0:01:15.4]} 24... bxa5
{[%clk 0:00:55.3]} 25. Nxc5 {[%clk 0:01:11.3]} 25... Bc6 {[%clk 0:00:55.1]} 26.
Bxa7 {[%clk 0:01:08.5]} 26... Bxg2 {[%clk 0:00:54.6]} 27. Kb2 {[%clk 0:01:01.6]}
27... f5 {[%clk 0:00:54.1]} 28. c4 {[%clk 0:01:01.1]} 28... g5 {[%clk 0:00:54]}
29. Nd3 {[%clk 0:00:58.8]} 29... f4 {[%clk 0:00:52.8]} 30. c5 {[%clk 0:00:57.3]}
30... Ke6 {[%clk 0:00:52.4]} 31. Kc3 {[%clk 0:00:50.4]} 31... h5 {[%clk
0:00:51.1]} 32. Kd4 {[%clk 0:00:48.7]} 32... Kf5 {[%clk 0:00:50.8]} 33. c4
{[%clk 0:00:37.9]} 33... Nc7 {[%clk 0:00:47.5]} 34. Bb6 {[%clk 0:00:34.7]} 34...
Ne6+ {[%clk 0:00:47.9]} 35. Kc3 {[%clk 0:00:34.7]} 35... a4 {[%clk 0:00:48.1]}
36. Kb4 {[%clk 0:00:31.8]} 36... g4 {[%clk 0:00:48]} 37. Kxa4 {[%clk 0:00:29.2]}
37... h4 {[%clk 0:00:48.1]} 38. Kb5 {[%clk 0:00:28.3]} 38... g3 {[%clk
0:00:48.2]} 39. hxg3 {[%clk 0:00:27]} 39... fxg3 {[%clk 0:00:48.2]} 40. c6
{[%clk 0:00:24.9]} 40... h3 {[%clk 0:00:43.9]} 41. c7 {[%clk 0:00:19]} 41...
Nxc7+ {[%clk 0:00:42.3]} 42. Bxc7 {[%clk 0:00:18.5]} 42... h2 {[%clk 0:00:42.8]}
43. Bxg3 {[%clk 0:00:17.7]} 43... h1=Q {[%clk 0:00:43.1]} 44. Bd6 {[%clk
0:00:15.7]} 44... Qb1+ {[%clk 0:00:42]} 45. Nb4 {[%clk 0:00:15.5]} 45... Bf1
{[%clk 0:00:41.8]} 46. Kc5 {[%clk 0:00:12]} 46... Qe4 {[%clk 0:00:41.8]} 0-1

[Event "*** SCC Grand Prix: Titled Tuesday Blitz"]
[Site "Chess.com"]
[Date "2020.09.08"]
[Round "1"]
[White "Synctel"]
[Black "SamuelGhimpu2003"]
[Result "0-1"]
[WhiteElo "1992"]
[BlackElo "2485"]
[TimeControl "180+1"]
[EndTime "10:07:09 PDT"]
[Termination "SamuelGhimpu2003 won by resignation"]

1. e4 {[%clk 0:02:46.7]} 1... g6 {[%clk 0:02:58.6]} 2. d4 {[%clk 0:02:31]} 2...
Bg7 {[%clk 0:02:58.9]} 3. Nc3 {[%clk 0:02:31.5]} 3... d6 {[%clk 0:02:59]} 4. Be3
{[%clk 0:02:31.4]} 4... a6 {[%clk 0:02:59.2]} 5. Qd2 {[%clk 0:02:30.1]} 5... b5
{[%clk 0:02:59.3]} 6. a3 {[%clk 0:02:29.2]} 6... Bb7 {[%clk 0:02:58.7]} 7. O-O-O
{[%clk 0:02:26.1]} 7... Nd7 {[%clk 0:02:54.8]} 8. h4 {[%clk 0:02:25.7]} 8... h5
{[%clk 0:02:46.2]} 9. f3 {[%clk 0:02:09.5]} 9... c5 {[%clk 0:02:42.4]} 10. Nh3
{[%clk 0:01:58.9]} 10... Rc8 {[%clk 0:02:34.1]} 11. Ng5 {[%clk 0:01:48.9]} 11...
cxd4 {[%clk 0:02:30.5]} 12. Bxd4 {[%clk 0:01:48.5]} 12... Ngf6 {[%clk
0:02:30.2]} 13. Kb1 {[%clk 0:01:44.5]} 13... Nb6 {[%clk 0:02:12.6]} 14. e5
{[%clk 0:01:32.8]} 14... dxe5 {[%clk 0:02:05.6]} 15. Bxe5 {[%clk 0:01:32.6]}
15... Qxd2 {[%clk 0:02:02.1]} 16. Rxd2 {[%clk 0:01:33.5]} 16... O-O {[%clk
0:01:56.8]} 17. Be2 {[%clk 0:01:31.5]} 17... Ne4 {[%clk 0:01:41.4]} 18. Ngxe4
{[%clk 0:01:17.7]} 18... Bxe5 {[%clk 0:01:41.5]} 19. Rhd1 {[%clk 0:01:12.6]}
19... f5 {[%clk 0:01:17]} 20. Ng5 {[%clk 0:01:09.6]} 20... Bxc3 {[%clk
0:01:17.6]} 21. bxc3 {[%clk 0:01:08.5]} 21... Na4 {[%clk 0:01:18.5]} 22. Rd7
{[%clk 0:00:48.2]} 22... Nxc3+ {[%clk 0:01:17.3]} 23. Kb2 {[%clk 0:00:42.1]}
23... Nxd1+ {[%clk 0:01:11]} 24. Rxd1 {[%clk 0:00:43]} 24... Rfd8 {[%clk
0:01:09.1]} 25. Bd3 {[%clk 0:00:42]} 25... e5 {[%clk 0:01:00.9]} 26. Re1 {[%clk
0:00:42.1]} 26... Re8 {[%clk 0:01:01.4]} 27. c3 {[%clk 0:00:39.8]} 27... Kg7
{[%clk 0:01:01.1]} 28. Bc2 {[%clk 0:00:39.9]} 28... Rcd8 {[%clk 0:00:58.5]} 29.
Re2 {[%clk 0:00:38.3]} 29... Kf6 {[%clk 0:00:52]} 30. Nh7+ {[%clk 0:00:33]}
30... Kg7 {[%clk 0:00:52.1]} 31. Ng5 {[%clk 0:00:33.1]} 31... Rd7 {[%clk
0:00:49.9]} 32. Bb3 {[%clk 0:00:32.6]} 32... Kf6 {[%clk 0:00:47.2]} 33. Kc2
{[%clk 0:00:19.1]} 33... e4 {[%clk 0:00:46.8]} 34. fxe4 {[%clk 0:00:17.7]} 34...
Bxe4+ {[%clk 0:00:47.7]} 35. Kb2 {[%clk 0:00:15.2]} 35... Ree7 {[%clk
0:00:35.2]} 36. Rf2 {[%clk 0:00:15.2]} 36... Bd3 {[%clk 0:00:27.8]} 37. Nh3
{[%clk 0:00:13.8]} 37... Re2+ {[%clk 0:00:27.3]} 38. Rxe2 {[%clk 0:00:12.4]}
38... Bxe2 {[%clk 0:00:28.2]} 39. Nf4 {[%clk 0:00:12.7]} 39... Bc4 {[%clk
0:00:27.5]} 40. Bc2 {[%clk 0:00:12.3]} 40... Rd2 {[%clk 0:00:26]} 41. Kc1 {[%clk
0:00:11]} 41... Rf2 {[%clk 0:00:26.6]} 42. Bd1 {[%clk 0:00:08.3]} 42... Rxf4
{[%clk 0:00:26.3]} 0-1

[Event "*** SCC Grand Prix: Titled Tuesday Blitz"]
[Site "Chess.com"]
[Date "2020.09.08"]
[Round "1"]
[White "adiosabu"]
[Black "Pertinhez76"]
[Result "1-0"]
[WhiteElo "2500"]
[BlackElo "2080"]
[TimeControl "180+1"]
[EndTime "10:07:11 PDT"]
[Termination "adiosabu won on time"]

1. d4 {[%clk 0:03:00.7]} 1... Nf6 {[%clk 0:02:51.6]} 2. c4 {[%clk 0:03:00.9]}
2... e5 {[%clk 0:02:46.3]} 3. dxe5 {[%clk 0:02:56.2]} 3... Ng4 {[%clk
0:02:45.5]} 4. Nf3 {[%clk 0:02:55.5]} 4... Nc6 {[%clk 0:02:45]} 5. e3 {[%clk
0:02:53.6]} 5... Bb4+ {[%clk 0:02:37.1]} 6. Nc3 {[%clk 0:02:50.7]} 6... Ngxe5
{[%clk 0:02:12.1]} 7. Bd2 {[%clk 0:02:46.1]} 7... O-O {[%clk 0:02:07.3]} 8. Be2
{[%clk 0:02:45]} 8... Re8 {[%clk 0:02:01.6]} 9. O-O {[%clk 0:02:44.1]} 9... a5
{[%clk 0:02:00.1]} 10. a3 {[%clk 0:02:40.3]} 10... Bxc3 {[%clk 0:01:58.9]} 11.
Bxc3 {[%clk 0:02:40]} 11... d6 {[%clk 0:01:58.3]} 12. b4 {[%clk 0:02:26.6]}
12... axb4 {[%clk 0:01:50.9]} 13. axb4 {[%clk 0:02:26]} 13... Rxa1 {[%clk
0:01:50.1]} 14. Qxa1 {[%clk 0:02:26.9]} 14... Qe7 {[%clk 0:01:48]} 15. Nd4
{[%clk 0:02:19.6]} 15... f6 {[%clk 0:01:33.9]} 16. b5 {[%clk 0:01:28.7]} 16...
Nxd4 {[%clk 0:01:30.9]} 17. exd4 {[%clk 0:01:27.5]} 17... Ng6 {[%clk 0:01:26]}
18. Re1 {[%clk 0:01:20.9]} 18... Qf7 {[%clk 0:01:21.2]} 19. Bf1 {[%clk
0:01:20.7]} 19... Be6 {[%clk 0:01:16.6]} 20. c5 {[%clk 0:01:16.9]} 20... Bd5
{[%clk 0:01:10.4]} 21. Rxe8+ {[%clk 0:01:14.2]} 21... Qxe8 {[%clk 0:01:09]} 22.
Qa5 {[%clk 0:01:14.8]} 22... Qe7 {[%clk 0:01:01.7]} 23. Qa8+ {[%clk 0:01:05.6]}
23... Kf7 {[%clk 0:01:01]} 24. Bb4 {[%clk 0:00:51.7]} 24... Nf4 {[%clk 0:00:45]}
25. cxd6 {[%clk 0:00:46.8]} 25... cxd6 {[%clk 0:00:44.1]} 26. Qa3 {[%clk
0:00:44.8]} 26... Qe4 {[%clk 0:00:27.1]} 27. Qe3 {[%clk 0:00:29.3]} 27... Ke6
{[%clk 0:00:15.2]} 28. Bd2 {[%clk 0:00:26.3]} 28... g5 {[%clk 0:00:11.2]} 29. f3
{[%clk 0:00:22.5]} 29... Qxe3+ {[%clk 0:00:10]} 30. Bxe3 {[%clk 0:00:23.4]}
30... Ng6 {[%clk 0:00:08.5]} 31. Bd3 {[%clk 0:00:23]} 31... Nf8 {[%clk
0:00:06.6]} 32. Kf2 {[%clk 0:00:23.2]} 32... h6 {[%clk 0:00:05.6]} 33. g3 {[%clk
0:00:22.6]} 33... Nd7 {[%clk 0:00:04.3]} 34. f4 {[%clk 0:00:22.8]} 34... Nb6
{[%clk 0:00:01]} 35. h4 {[%clk 0:00:22.5]} 35... Nc4 {[%clk 0:00:01.9]} 36. Bc1
{[%clk 0:00:21.1]} 1-0

[Event "*** SCC Grand Prix: Titled Tuesday Blitz"]
[Site "Chess.com"]
[Date "2020.09.08"]
[Round "1"]
[White "Kaslask"]
[Black "Ermito2020"]
[Result "0-1"]
[WhiteElo "2305"]
[BlackElo "2627"]
[TimeControl "180+1"]
[EndTime "10:07:12 PDT"]
[Termination "Ermito2020 won on time"]

1. d4 {[%clk 0:02:47]} 1... d5 {[%clk 0:02:58.6]} 2. c4 {[%clk 0:02:46.3]} 2...
e6 {[%clk 0:02:58.4]} 3. Nc3 {[%clk 0:02:45.1]} 3... c6 {[%clk 0:02:58.2]} 4. e4
{[%clk 0:02:42.3]} 4... dxe4 {[%clk 0:02:58.5]} 5. Nxe4 {[%clk 0:02:42.1]} 5...
Bb4+ {[%clk 0:02:59]} 6. Nc3 {[%clk 0:02:41.7]} 6... c5 {[%clk 0:02:54]} 7. Nf3
{[%clk 0:02:32.1]} 7... Nf6 {[%clk 0:02:42.5]} 8. a3 {[%clk 0:02:29.2]} 8... Ba5
{[%clk 0:02:34.2]} 9. Bg5 {[%clk 0:02:19.4]} 9... cxd4 {[%clk 0:02:27.8]} 10.
Qxd4 {[%clk 0:02:17]} 10... Qxd4 {[%clk 0:02:21.5]} 11. Nxd4 {[%clk 0:02:16.6]}
11... Ne4 {[%clk 0:02:22.1]} 12. Bd2 {[%clk 0:02:00.9]} 12... Nxd2 {[%clk
0:02:20.7]} 13. Kxd2 {[%clk 0:01:59.9]} 13... O-O {[%clk 0:02:07.5]} 14. Nb3
{[%clk 0:01:46.1]} 14... Bc7 {[%clk 0:01:56.1]} 15. Be2 {[%clk 0:01:43.2]} 15...
Nc6 {[%clk 0:01:51.9]} 16. Rad1 {[%clk 0:01:35.5]} 16... a5 {[%clk 0:01:22]} 17.
Kc2 {[%clk 0:01:21.6]} 17... a4 {[%clk 0:01:19.9]} 18. Nd4 {[%clk 0:01:19.8]}
18... Nxd4+ {[%clk 0:01:16.9]} 19. Rxd4 {[%clk 0:01:18.6]} 19... Bb6 {[%clk
0:01:17.6]} 20. Rd2 {[%clk 0:01:06.3]} 20... Bxf2 {[%clk 0:01:15.5]} 21. Bf3
{[%clk 0:01:05.5]} 21... Bc5 {[%clk 0:01:08.1]} 22. Nb5 {[%clk 0:01:01.8]} 22...
e5 {[%clk 0:01:00.6]} 23. Be4 {[%clk 0:00:51.2]} 23... f5 {[%clk 0:00:51.1]} 24.
Bd5+ {[%clk 0:00:50.3]} 24... Kh8 {[%clk 0:00:51.2]} 25. Nc7 {[%clk 0:00:49.8]}
25... Rb8 {[%clk 0:00:47.1]} 26. Ne6 {[%clk 0:00:44.2]} 26... Bxe6 {[%clk
0:00:45.2]} 27. Bxe6 {[%clk 0:00:44.2]} 27... e4 {[%clk 0:00:43.4]} 28. Re1
{[%clk 0:00:38.9]} 28... Rbe8 {[%clk 0:00:39.2]} 29. Bd7 {[%clk 0:00:37.2]}
29... Ra8 {[%clk 0:00:31.6]} 30. Rd5 {[%clk 0:00:37]} 30... Bf2 {[%clk
0:00:30.2]} 31. Re2 {[%clk 0:00:35.7]} 31... e3 {[%clk 0:00:30.4]} 32. Rxf5
{[%clk 0:00:35.3]} 32... Rxf5 {[%clk 0:00:29.7]} 33. Bxf5 {[%clk 0:00:33.9]}
33... g6 {[%clk 0:00:27.3]} 34. Bd3 {[%clk 0:00:33.1]} 34... Kg7 {[%clk
0:00:26.8]} 35. Kc3 {[%clk 0:00:32]} 35... Rd8 {[%clk 0:00:25.9]} 36. Be4 {[%clk
0:00:24]} 36... b6 {[%clk 0:00:24.7]} 37. Kb4 {[%clk 0:00:20.5]} 37... Rd4
{[%clk 0:00:23.6]} 38. Bf3 {[%clk 0:00:20]} 38... g5 {[%clk 0:00:23.6]} 39. Kb5
{[%clk 0:00:18.8]} 39... g4 {[%clk 0:00:23]} 0-1

[Event "*** SCC Grand Prix: Titled Tuesday Blitz"]
[Site "Chess.com"]
[Date "2020.09.08"]
[Round "1"]
[White "davigator"]
[Black "dusanacns"]
[Result "1/2-1/2"]
[WhiteElo "2345"]
[BlackElo "2663"]
[TimeControl "180+1"]
[EndTime "10:07:15 PDT"]
[Termination "Game drawn by repetition"]

1. e4 {[%clk 0:03:00.5]} 1... g6 {[%clk 0:02:58.1]} 2. d4 {[%clk 0:02:58.8]}
2... Bg7 {[%clk 0:02:59]} 3. Nc3 {[%clk 0:02:56.7]} 3... a6 {[%clk 0:02:56.8]}
4. Be3 {[%clk 0:02:56.2]} 4... b5 {[%clk 0:02:56.6]} 5. f3 {[%clk 0:02:55.8]}
5... Bb7 {[%clk 0:02:57]} 6. Qd2 {[%clk 0:02:55.6]} 6... d6 {[%clk 0:02:57.5]}
7. O-O-O {[%clk 0:02:55.5]} 7... Nd7 {[%clk 0:02:57.5]} 8. Kb1 {[%clk
0:02:54.6]} 8... Rc8 {[%clk 0:02:56.4]} 9. Nce2 {[%clk 0:02:49.8]} 9... c5
{[%clk 0:02:55.9]} 10. c3 {[%clk 0:02:49.4]} 10... Ngf6 {[%clk 0:02:55.7]} 11.
Bh6 {[%clk 0:02:47.2]} 11... Bxh6 {[%clk 0:02:51.3]} 12. Qxh6 {[%clk 0:02:46.1]}
12... b4 {[%clk 0:02:51.7]} 13. c4 {[%clk 0:02:44.3]} 13... b3 {[%clk
0:02:45.4]} 14. axb3 {[%clk 0:02:43.6]} 14... Qb6 {[%clk 0:02:40.1]} 15. Qe3
{[%clk 0:02:39.3]} 15... cxd4 {[%clk 0:02:19.2]} 16. Nxd4 {[%clk 0:02:35.5]}
16... Nc5 {[%clk 0:02:19.2]} 17. Qc3 {[%clk 0:02:32]} 17... O-O {[%clk 0:02:16]}
18. Bd3 {[%clk 0:02:30.2]} 18... Rb8 {[%clk 0:02:12.1]} 19. Bc2 {[%clk
0:02:29.6]} 19... e5 {[%clk 0:02:06.5]} 20. Nde2 {[%clk 0:02:26.2]} 20... Ba8
{[%clk 0:02:05.6]} 21. Nc1 {[%clk 0:02:25.3]} 21... a5 {[%clk 0:02:03.2]} 22.
Nge2 {[%clk 0:02:21.3]} 22... Rfd8 {[%clk 0:02:03]} 23. Rd2 {[%clk 0:02:14.7]}
23... Bc6 {[%clk 0:01:46.5]} 24. Rhd1 {[%clk 0:02:10]} 24... Ne8 {[%clk
0:01:46.7]} 25. Ka2 {[%clk 0:01:51.3]} 25... a4 {[%clk 0:01:45.6]} 26. b4 {[%clk
0:01:38.4]} 26... Qxb4 {[%clk 0:01:40.9]} 27. Qxb4 {[%clk 0:01:38.3]} 27... Rxb4
{[%clk 0:01:41.8]} 28. Nd3 {[%clk 0:01:18.3]} 28... Nxd3 {[%clk 0:01:37.2]} 29.
Bxd3 {[%clk 0:01:17.3]} 29... Rdb8 {[%clk 0:01:36.4]} 30. Rc1 {[%clk 0:01:11.4]}
30... Bd7 {[%clk 0:01:32.9]} 31. Nc3 {[%clk 0:01:11.1]} 31... Be6 {[%clk
0:01:33.1]} 32. Nd5 {[%clk 0:01:11.3]} 32... Bxd5 {[%clk 0:01:28.6]} 33. cxd5
{[%clk 0:01:10.1]} 33... Nf6 {[%clk 0:01:29.1]} 34. Rc6 {[%clk 0:01:08.9]} 34...
R8b6 {[%clk 0:01:27.6]} 35. Rdc2 {[%clk 0:01:06.8]} 35... Nd7 {[%clk 0:01:27.5]}
36. Rxb6 {[%clk 0:01:03.8]} 36... Rxb6 {[%clk 0:01:28.4]} 37. Rc6 {[%clk
0:01:03.7]} 37... Kf8 {[%clk 0:01:27.1]} 38. Rxb6 {[%clk 0:00:59.8]} 38... Nxb6
{[%clk 0:01:26.6]} 39. Bb5 {[%clk 0:01:00.4]} 39... f5 {[%clk 0:01:25.6]} 40.
Ka3 {[%clk 0:00:58.4]} 40... Ke7 {[%clk 0:01:20.8]} 41. Kb4 {[%clk 0:00:57.9]}
41... Kd8 {[%clk 0:01:20.7]} 42. Bxa4 {[%clk 0:00:55.7]} 42... Kc7 {[%clk
0:01:21.2]} 43. h4 {[%clk 0:00:52.4]} 43... f4 {[%clk 0:01:19.2]} 44. Be8 {[%clk
0:00:48.1]} 44... Nc8 {[%clk 0:01:15.8]} 45. Kb5 {[%clk 0:00:45.4]} 45... Kb7
{[%clk 0:01:15.1]} 46. b4 {[%clk 0:00:43.5]} 46... Na7+ {[%clk 0:01:14.5]} 47.
Ka5 {[%clk 0:00:43.6]} 47... Nc8 {[%clk 0:01:15.4]} 48. Bc6+ {[%clk 0:00:41.4]}
48... Kc7 {[%clk 0:01:15.3]} 49. Be8 {[%clk 0:00:35.6]} 49... Nb6 {[%clk
0:01:14.7]} 50. Kb5 {[%clk 0:00:36.2]} 50... Nc8 {[%clk 0:01:14.9]} 51. Bf7
{[%clk 0:00:36.2]} 51... Kb7 {[%clk 0:01:13.6]} 52. Bg8 {[%clk 0:00:34.9]} 52...
h6 {[%clk 0:01:13.4]} 53. Be6 {[%clk 0:00:31.6]} 53... Nb6 {[%clk 0:01:11.4]}
54. Bh3 {[%clk 0:00:26]} 54... Kc7 {[%clk 0:01:10.7]} 55. Be6 {[%clk 0:00:20]}
55... Kb7 {[%clk 0:01:09.9]} 56. Bf7 {[%clk 0:00:19.5]} 56... g5 {[%clk
0:01:09.1]} 57. hxg5 {[%clk 0:00:19.8]} 57... hxg5 {[%clk 0:01:10]} 58. Be8
{[%clk 0:00:18.6]} 58... Kc7 {[%clk 0:01:10.3]} 59. Bc6 {[%clk 0:00:18.7]} 59...
Nc8 {[%clk 0:01:10.7]} 60. Ka6 {[%clk 0:00:18.3]} 60... Nb6 {[%clk 0:01:10.1]}
61. Bb5 {[%clk 0:00:17.2]} 61... Nc8 {[%clk 0:01:09.4]} 62. Bc6 {[%clk
0:00:15.9]} 62... Nb6 {[%clk 0:01:09.7]} 63. Ka5 {[%clk 0:00:15.9]} 63... Nc4+
{[%clk 0:01:09.3]} 64. Ka6 {[%clk 0:00:14.8]} 64... Nb6 {[%clk 0:01:08.1]}
1/2-1/2